bitfinex/quotes_ETHUSD_20240717
["timestamp","ask_amount","ask_price","bid_price","bid_amount"]
[1721226880119,2.88375,3467.7,3466.4,4.7]
[1721226880120,2.88397,3467.5,3466.4,4.7]
[1721226880452,2.88397,3467.5,3466.8,2.88444]
[1721226880660,2.88345,3468.1,3467.1,2.88423]
[1721226880961,2.8835,3468.0,3466.9,1.7]
[1721226881134,2.88332,3468.3,3467.3,2.88407]
[1721226881304,3.0,3468.2,3467.3,2.88407]
[1721226881505,2.88332,3468.3,3467.5,2.88391]
[1721226881706,2.88309,3468.5,3467.7,2.8837]
[1721226881933,2.88309,3468.5,3467.8,3.49130198]
[1721226882142,2.88288,3468.8,3467.9,2.94124198]
[1721226882344,2.88288,3468.8,3468.0,0.55]
[1721226882551,2.88288,3468.8,3468.0,3.43348]
[1721226882849,2.88293,3468.7,3468.0,3.43348]
[1721226883055,2.88293,3468.7,3468.0,0.55]
[1721226883056,2.88302,3468.6,3468.0,0.55]
[1721226883207,3.0,3469.0,3467.5,1.7]
[1721226883403,2.88314,3468.5,3467.8,2.88366]
[1721226883602,2.88318,3468.4,3467.7,2.88369]
[1721226883867,2.88326,3468.3,3467.6,3.35772]
[1721226884064,2.88326,3468.3,3467.7,2.88373]
[1721226884284,2.88323,3468.4,3467.7,2.88373]
[1721226884490,5.88271,3469.0,3467.7,0.624159]
[1721226884491,3.0,3469.0,3467.7,0.624159]
[1721226884697,2.88315,3468.5,3467.8,3.43366]
[1721226884979,2.88296,3468.7,3467.9,2.88357]
[1721226885162,5.88276,3468.9,3468.0,3.43349]
[1721226885364,3.0,3468.9,3468.0,0.55]
[1721226885572,3.0,3468.9,3468.1,0.513357]
[1721226885573,2.88285,3468.8,3468.1,0.513357]
[1721226885778,2.88276,3468.9,3468.2,0.55]
[1721226885779,2.883,3468.6,3468.2,0.55]
[1721226885953,2.88312,3468.5,3468.2,0.55]
[1721226886160,2.88312,3468.5,3467.7,2.88374]
[1721226886161,2.88317,3468.4,3467.3,2.88403]
[1721226886495,2.88339,3468.2,3467.4,5.17339]
[1721226886647,2.88339,3468.2,3467.5,2.8839]
[1721226886843,2.88317,3468.4,3467.6,2.88383]
[1721226887185,0.03155673,3468.1,3467.8,2.88364]
[1721226887494,3.0,3469.0,3467.6,2.88383]
[1721226887495,0.03151199,3468.0,3467.9,3.43358]
[1721226887640,2.88292,3468.7,3467.9,0.55]
[1721226887641,2.88295,3468.7,3467.9,0.55]
[1721226887847,2.88295,3468.7,3468.0,2.88349]
[1721226888171,2.88278,3468.9,3468.0,2.88349]
[1721226888483,3.0,3468.8,3468.1,0.55]
[1721226888647,5.88285,3468.8,3468.1,3.43341]
[1721226888982,2.88294,3468.7,3468.1,0.55]
[1721226889289,3.0,3468.8,3468.0,0.55]
[1721226889496,2.88296,3468.7,3467.9,2.88357]
[1721226889648,2.88296,3468.7,3468.0,0.55]
[1721226890480,2.88278,3468.9,3468.0,0.55]
[1721226890675,5.88292,3468.8,3468.0,0.55]
[1721226890931,2.88292,3468.7,3468.0,3.43348]
[1721226891213,5.88291,3468.8,3468.1,2.88341]
[1721226891415,5.88291,3468.8,3468.2,0.55]
[1721226891621,2.88294,3468.7,3468.2,0.55]
[1721226891827,2.88314,3468.5,3468.0,0.55]
[1721226892143,2.4952,3468.7,3467.1,1.7]
[1721226892426,2.88368,3467.8,3467.1,2.88425]
[1721226892647,2.88368,3467.8,3466.9,2.88435]
[1721226892798,2.88276,3468.9,3466.5,1.0973894]
[1721226892799,2.88393,3467.5,3466.5,3.9821194]
[1721226892997,3.0,3468.6,3466.5,0.3010894]
[1721226892998,2.2621,3467.7,3466.5,0.3010894]
[1721226893197,2.88392,3467.5,3466.7,2.88457]
[1721226893405,2.88381,3467.7,3466.9,2.88441]
[1721226893702,5.76748,3467.8,3466.9,2.88441]
[1721226893910,2.88374,3467.8,3466.9,2.88441]
[1721226894228,2.88353,3468.0,3467.1,2.88422]
[1721226894523,2.8835,3468.0,3467.3,2.88405]
[1721226894719,2.8835,3468.0,3467.4,0.55]
[1721226894933,2.88356,3468.0,3467.4,0.55]
[1721226895221,2.88355,3468.0,3467.3,2.88408]
[1721226895431,2.88335,3468.2,3467.4,0.55]
[1721226895627,2.88335,3468.2,3467.4,3.43399]
[1721226895797,2.88327,3468.3,3467.4,3.43399]
[1721226895995,3.0,3468.6,3467.5,2.88392]
[1721226895996,2.88335,3468.2,3467.5,2.88392]
[1721226896334,2.88322,3468.4,3467.6,3.43383]
[1721226896498,5.88322,3468.4,3467.6,4.3537952]
[1721226896823,2.88328,3468.3,3467.6,4.3537952]
[1721226897321,2.88334,3468.2,3467.6,0.55]
[1721226897533,2.88334,3468.2,3467.4,2.88399]
[1721226897534,2.88351,3468.0,3467.5,0.55]
[1721226897742,2.88351,3468.0,3467.0,2.8843]
[1721226897930,2.88383,3467.7,3466.9,2.88441]
[1721226898299,2.88389,3467.6,3466.8,0.30110139]
[1721226898804,2.88409,3467.3,3466.8,0.30110139]
[1721226899101,2.8838,3467.7,3466.8,0.61966953]
[1721226899426,2.88392,3467.5,3466.8,0.61966953]
[1721226899751,2.88408,3467.3,3466.8,0.30110139]
[1721226900051,2.88408,3467.3,3466.9,0.55]
[1721226900261,2.88383,3467.6,3466.9,0.55]
[1721226900400,2.88383,3467.6,3466.8,0.30110139]
[1721226900401,2.88427,3467.1,3466.8,0.30110139]
[1721226900760,2.3226,3468.3,3466.8,0.30110139]
[1721226901043,2.88367,3467.8,3466.9,4.90291214]
[1721226901210,2.88367,3467.8,3466.9,0.31856214]
[1721226901416,5.76707,3468.0,3467.0,2.88431]
[1721226901642,2.88351,3468.0,3467.2,2.88415]
[1721226901840,2.8836,3467.9,3467.3,0.55]
[1721226902004,2.88367,3467.8,3467.3,0.55]
[1721226902202,2.88411,3467.3,3466.8,0.30110139]
[1721226902440,2.88436,3467.0,3466.8,0.30110139]
[1721226902744,2.88417,3467.2,3466.2,2.88495]
[1721226902745,2.88442,3466.9,3466.2,2.88495]
[1721226903045,2.88423,3467.2,3466.5,2.88475]
[1721226903370,2.88458,3466.7,3466.2,0.87831858]
[1721226903505,2.88458,3466.7,3466.2,0.30130858]
[1721226903705,2.88432,3467.1,3466.4,2.88478]
[1721226903927,2.88409,3467.3,3466.2,0.30130858]
[1721226903928,2.88417,3467.2,3466.3,2.88486]
[1721226904143,2.88427,3467.1,3466.4,0.48861686]
[1721226904304,2.88427,3467.1,3466.4,2.88482]
[1721226905154,2.88427,3467.1,3466.5,0.55]
[1721226905713,2.88427,3467.1,3466.5,3.43474]
[1721226906266,2.88427,3467.1,3466.5,0.55]
[1721226906564,2.88409,3467.3,3466.5,3.43475]
[1721226906710,3.0,3467.2,3466.5,4.09683586]
[1721226906910,3.0,3467.2,3466.6,2.8846]
[1721226907111,2.88379,3467.7,3466.7,3.43452]
[1721226907352,2.88379,3467.7,3466.8,2.88449]
[1721226907568,2.88362,3467.9,3466.9,0.893449]
[1721226907711,2.2997,3468.0,3466.9,0.893449]
[1721226907712,2.88387,3467.6,3466.9,3.777849]
[1721226907913,2.88387,3467.6,3466.9,0.893449]
[1721226908114,2.884,3467.5,3466.9,0.893449]
[1721226908319,2.884,3467.5,3466.9,0.55]
[1721226908548,2.884,3467.5,3466.8,3.43448]
[1721226908758,2.884,3467.5,3466.8,0.55]
[1721226908910,2.884,3467.5,3466.7,3.4345]
[1721226909237,2.88362,3467.9,3466.7,0.55]
[1721226909445,2.8838,3467.7,3467.0,2.88432]
[1721226909768,2.8838,3467.7,3467.1,1.126871]
[1721226909911,2.88362,3467.9,3467.2,2.88416]
[1721226910112,2.88368,3467.8,3467.3,0.55]
[1721226910464,2.3492,3468.4,3467.4,2.88399]
[1721226910673,2.88341,3468.2,3467.5,0.55]
[1721226910829,2.88341,3468.2,3467.6,0.343399]
[1721226911033,2.88341,3468.2,3467.7,0.55]
[1721226911230,2.88319,3468.4,3467.7,0.55]
[1721226911434,2.88281,3468.9,3468.2,2.88331]
[1721226911759,2.88294,3468.7,3468.3,0.55]
[1721226911940,2.88294,3468.7,3468.2,0.55]
[1721226912315,2.88306,3468.6,3468.0,0.55]
[1721226912528,2.88306,3468.6,3467.6,0.343399]
[1721226912529,2.88317,3468.4,3467.7,0.55]
[1721226912753,2.88317,3468.4,3467.1,7.21685389]
[1721226912754,2.88356,3468.0,3467.1,7.21685389]
[1721226915573,2.88328,3468.3,3468.0,0.55]
[1721226915869,2.88334,3468.2,3467.7,0.55]
[1721226916076,2.88334,3468.2,3467.6,0.55]
[1721226916263,2.88323,3468.4,3467.6,4.065628]
[1721226916431,2.8833,3468.3,3467.6,4.065628]
[1721226916632,2.88312,3468.5,3467.7,2.88368]
[1721226916884,1.20267523,3468.9,3467.8,0.55]
[1721226917173,2.88244,3469.3,3468.5,2.88303]
[1721226917371,2.88244,3469.3,3468.6,3.433]
[1721226917753,2.88227,3469.5,3468.6,3.433]
[1721226917934,2.88245,3469.3,3468.6,3.433]
[1721226918131,2.88252,3469.2,3468.6,0.55]
[1721226920674,4.20267523,3469.5,3468.6,0.55]
[1721226920885,5.88229,3469.5,3468.6,3.43299]
[1721226921174,4.35127113,3469.6,3468.7,3.514509]
[1721226921474,0.1485959,3469.6,3469.2,2.8825]
[1721226921776,0.1485959,3469.6,3469.4,2.88233]
[1721226921934,0.1485959,3469.6,3469.4,3.513813]
[1721226922135,0.1485959,3469.6,3469.5,3.43225]
[1721226922349,0.1485959,3469.6,3469.5,6.3145]
[1721226923094,0.1485959,3469.6,3469.5,3.43225]
[1721226923239,0.1485959,3469.6,3469.5,0.55]
[1721226923905,0.1485959,3469.6,3469.5,0.9563873]
[1721226924239,0.1485959,3469.6,3469.5,3.8386373]
[1721226924436,0.1485959,3469.6,3469.5,6.7208873]
[1721226924762,0.1485959,3469.6,3469.5,8.4208873]
[1721226925792,0.1485959,3469.6,3469.5,6.7208873]
[1721226926295,0.1485959,3469.6,3469.5,0.4063873]
[1721226926434,0.1485959,3469.6,3469.3,2.88234]
[1721226927177,0.1485959,3469.6,3468.9,2.88275]
[1721226927535,0.1485959,3469.6,3469.1,1.7]
[1721226927773,0.1485959,3469.6,3469.5,2.88225]
[1721226928213,0.1485959,3469.6,3469.5,7.4645]
[1721226928366,0.1485959,3469.6,3469.5,8.76095]
[1721226928710,0.1485959,3469.6,3469.5,4.1787]
[1721226929268,0.1485959,3469.6,3469.5,1.29645]
[1721226929517,0.1485959,3469.6,3469.5,0.55]
[1721226929719,0.1485959,3469.6,3469.2,2.88249]
[1721226930217,0.1485959,3469.6,3468.9,2.88273]
[1721226930375,0.1485959,3469.6,3468.7,3.514499]
[1721226930722,0.1485959,3469.6,3468.8,2.88283]
[1721226930884,0.1485959,3469.6,3468.9,0.3514429]
[1721226931272,2.88228,3469.5,3468.9,0.3514429]
[1721226931513,3.0307759,3469.6,3468.9,3.2341429]
[1721226931514,0.1485959,3469.6,3468.9,3.2341429]
[1721226931714,3.0308159,3469.6,3468.7,0.631599]
[1721226931866,3.0308159,3469.6,3468.4,3.0]
[1721226931867,2.8826,3469.1,3468.4,2.88311]
[1721226932071,2.8826,3469.1,3468.5,2.88308]
[1721226932291,0.07788916,3469.0,3468.5,2.88308]
[1721226932497,2.88227,3469.5,3468.7,2.88287]
[1721226932778,2.88227,3469.5,3468.5,2.88308]
[1721226932779,0.07793102,3468.9,3468.8,3.459435]
[1721226932989,3.0307759,3469.6,3468.8,3.459435]
[1721226933205,0.078341,3468.9,3468.8,3.459435]
[1721226933402,0.1485959,3469.6,3468.9,2.88273]
[1721226933671,6.0307759,3469.6,3469.0,0.55]
[1721226933901,6.0307759,3469.6,3468.6,2.88298]
[1721226933902,6.0307759,3469.6,3468.9,3.43275]
[1721226934102,3.1485959,3469.6,3468.9,4.064323]
[1721226934874,6.0307659,3469.6,3468.9,1.181573]
[1721226935121,6.0307659,3469.6,3468.9,0.55]
[1721226935279,6.0307659,3469.6,3468.9,3.43274]
[1721226935479,0.1485959,3469.6,3469.1,2.88252]
[1721226935681,0.1485959,3469.6,3469.2,0.55]
[1721226935911,0.1485959,3469.6,3469.2,3.43249]
[1721226936120,0.1485959,3469.6,3469.4,2.88228]
[1721226936272,0.1485959,3469.6,3469.5,0.55]
[1721226936891,0.1485959,3469.6,3469.5,3.43225]
[1721226937312,0.1485959,3469.6,3469.5,6.3145]
[1721226940017,0.1485959,3469.6,3469.5,3.43225]
[1721226940237,0.1485959,3469.6,3469.5,4.1268591]
[1721226940391,0.1485959,3469.6,3469.5,7.0091091]
[1721226940589,0.1485959,3469.6,3469.5,4.1268591]
[1721226940788,0.1485959,3469.6,3469.1,2.88255]
[1721226940991,0.1485959,3469.6,3468.9,2.88273]
[1721226940992,3.0307859,3469.6,3468.9,2.88272]
[1721226941493,0.07547644,3469.5,3468.9,2.88269]
[1721226941689,0.07547644,3469.5,3469.1,2.88256]
[1721226941937,0.07547644,3469.5,3469.2,2.88249]
[1721226942141,0.07547644,3469.5,3469.3,0.576505]
[1721226942290,0.07547644,3469.5,3468.9,2.88272]
[1721226942755,0.07547644,3469.5,3469.1,2.88258]
[1721226942901,0.07547644,3469.5,3469.2,3.4325]
[1721226943710,0.07547644,3469.5,3469.3,2.88241]
[1721226943919,0.07547644,3469.5,3469.4,8.01468]
[1721226944132,0.1485959,3469.6,3469.5,2.88225]
[1721226944325,0.1485959,3469.6,3469.5,0.55]
[1721226944805,0.1485959,3469.6,3469.5,3.43225]
[1721226945008,0.1485959,3469.6,3469.5,6.3145]
[1721226946849,0.1485959,3469.6,3469.5,3.43225]
[1721226947003,0.1485959,3469.6,3469.5,4.063713]
[1721226947442,0.1485959,3469.6,3469.5,1.181463]
[1721226947749,0.22382503,3469.6,3469.5,4.063713]
[1721226947919,0.1485959,3469.6,3469.5,4.063713]
[1721226948119,0.1485959,3469.6,3469.5,6.945963]
[1721226948740,0.1485959,3469.6,3469.5,1.181463]
[1721226948904,0.22380715,3469.6,3469.5,4.063713]
[1721226949106,0.1485959,3469.6,3469.5,4.063713]
[1721226949307,0.1485959,3469.6,3469.5,1.181463]
[1721226949557,0.2238617,3469.6,3469.5,0.55]
[1721226949708,0.2238617,3469.6,3469.3,3.43239]
[1721226951707,0.2238617,3469.6,3469.3,3.43234]
[1721226952041,0.2238617,3469.6,3469.5,2.88225]
[1721226952211,0.2238617,3469.6,3469.5,3.43225]
[1721226952411,0.1485959,3469.6,3469.5,4.118709]
[1721226953634,0.22327932,3469.6,3469.5,4.118709]
[1721226954232,0.1485959,3469.6,3469.5,4.118709]
[1721226956714,0.1485959,3469.6,3469.5,7.000959]
[1721226956915,0.1485959,3469.6,3469.5,15.222509]
[1721226957176,0.1485959,3469.6,3469.5,18.222509]
[1721226957666,2.4442,3470.9,3470.3,2.88158]
[1721226957819,2.4442,3470.9,3470.4,0.55]
[1721226958024,0.07282246,3470.8,3470.4,0.55]
[1721226958424,0.07282246,3470.8,3470.4,3.4315]
[1721226959827,5.88084,3471.2,3470.4,3.4315]
[1721226960134,5.4891,3471.4,3470.6,2.88134]
[1721226960325,2.95406606,3471.3,3470.7,0.55]
[1721226960656,2.88102,3471.0,3470.7,0.55]
[1721226960857,5.88089,3471.2,3470.7,0.55]
[1721226961064,0.07281947,3470.9,3470.5,0.55]
[1721226961357,0.07278528,3470.8,3470.5,0.55]
[1721226961557,2.88098,3471.1,3470.5,1.181314]
[1721226961758,0.07275109,3470.7,3470.5,4.062714]
[1721226962071,3.0,3471.2,3470.5,4.062714]
[1721226962360,2.88094,3471.1,3470.5,0.55]
[1721226962520,2.88094,3471.1,3469.5,0.60046216]
[1721226962521,2.51614506,3471.1,3469.5,0.60046216]
[1721226962721,2.51614506,3471.1,3469.5,2.88223]
[1721226962722,2.88166,3470.3,3469.5,2.88223]
[1721226963046,0.07269425,3470.2,3469.3,2.88235]
[1721226963237,0.07269425,3470.2,3469.7,2.88207]
[1721226963551,0.07299749,3470.1,3469.8,0.288207]
[1721226963733,2.88124,3470.8,3469.9,2.8819]
[1721226963734,3.0,3470.7,3469.9,2.8819]
[1721226963967,2.88157,3470.4,3469.8,0.288207]
[1721226964170,0.07304926,3470.6,3469.7,2.88206]
[1721226964384,2.8816,3470.3,3469.7,2.88206]
[1721226964664,2.8816,3470.3,3469.5,2.88219]
[1721226964833,2.95473153,3470.2,3469.3,2.88242]
[1721226965164,2.95473153,3470.2,3469.5,2.88219]
[1721226965165,2.95471153,3470.2,3469.5,2.88219]
[1721226965386,2.95469153,3470.2,3469.6,0.57646]
[1721226965537,2.8818,3470.1,3469.6,0.57646]
[1721226965731,2.88193,3469.9,3469.2,0.30088507]
[1721226966085,2.88224,3469.6,3469.2,0.30088507]
[1721226966461,0.07217365,3469.5,3469.2,0.30088507]
[1721226966976,5.21694,3469.9,3469.2,0.30088507]
[1721226966977,0.07266802,3469.4,3469.2,0.30088507]
[1721226967146,2.88216,3469.7,3469.2,0.30088507]
[1721226967346,0.07260917,3469.6,3469.2,0.30088507]
[1721226967546,2.88234,3469.4,3469.2,0.30088507]
[1721226967744,6.41965523,3469.9,3468.8,2.88281]
[1721226967745,0.07269244,3469.3,3468.8,2.88281]
[1721226967970,3.0,3469.8,3468.8,3.4719911]
[1721226968279,0.07241664,3469.2,3468.8,0.5891811]
[1721226968482,2.88239,3469.4,3468.8,0.5891811]
[1721226968687,0.07238243,3469.1,3468.8,0.5891811]
[1721226968883,2.88239,3469.4,3468.8,0.5891811]
[1721226969173,2.88227,3469.5,3468.8,3.4720111]
[1721226969473,0.07248723,3469.3,3468.9,0.55]
[1721226969633,0.07260174,3469.4,3468.9,1.24049311]
[1721226969830,5.88201,3469.8,3468.9,4.12324311]
[1721226970104,4.69301057,3470.4,3469.2,2.8825]
[1721226970105,0.07247661,3469.3,3469.2,2.8825]
[1721226970238,1.20267523,3470.2,3469.3,0.55]
[1721226970239,2.88168,3470.2,3469.3,0.55]
[1721226970434,1.20267523,3470.3,3469.5,4.58225]
[1721226970662,2.88143,3470.5,3469.7,2.88203]
[1721226970980,2.88124,3470.8,3470.0,2.88182]
[1721226971138,2.3246,3470.9,3470.2,2.88161]
[1721226971339,2.88113,3470.9,3470.3,0.55]
[1721226971670,2.88147,3470.5,3470.3,0.55]
[1721226971984,2.88149,3470.5,3470.3,0.55]
[1721226972150,0.07311223,3470.4,3470.3,0.55]
[1721226972338,0.07311223,3470.4,3470.3,0.30929436]
[1721226972540,0.07303484,3470.4,3470.3,0.85929436]
[1721226972748,1.5089507,3471.1,3470.3,0.85929436]
[1721226972749,1.20267523,3471.1,3470.3,0.85929436]
[1721226973042,0.07333288,3471.0,3470.4,0.55]
[1721226973289,2.8811,3470.9,3470.4,0.55]
[1721226973438,2.95435288,3471.0,3470.4,0.55]
[1721226973643,0.07321609,3470.8,3470.4,0.55]
[1721226973840,1.20267523,3471.1,3470.4,0.92408944]
[1721226974153,4.08357523,3471.2,3470.4,3.80558944]
[1721226974348,0.07349874,3471.1,3470.4,3.80558944]
[1721226974780,2.88101,3471.0,3470.4,0.55]
[1721226975086,2.88134,3470.6,3470.4,0.55]
[1721226975378,0.07346457,3471.0,3470.3,0.30929436]
[1721226975379,2.88151,3470.4,3470.3,0.30929436]
[1721226975753,2.95463109,3470.4,3470.3,0.30929436]
[1721226976566,0.07312109,3470.4,3470.3,0.30929436]
[1721226976767,2.95463109,3470.4,3470.3,0.30929436]
[1721226977581,0.07312109,3470.4,3470.3,0.30929436]
[1721226977885,0.07312109,3470.4,3470.3,0.85929436]
[1721226978055,2.88087,3471.2,3470.3,4.1149838]
[1721226978404,2.88087,3471.2,3470.5,2.88142]
[1721226978546,2.88087,3471.2,3470.6,0.55]
[1721226979155,2.88093,3471.1,3470.6,0.55]
[1721226979567,1.20267523,3471.5,3470.6,0.55]
[1721226979782,2.88077,3471.3,3470.7,2.88124]
[1721226980087,2.88077,3471.3,3470.8,0.55]
[1721226980961,2.88065,3471.5,3470.8,0.55]
[1721226981161,5.88051,3471.6,3470.8,3.43115]
[1721226981405,3.0,3471.5,3470.9,2.88108]
[1721226981560,3.0,3471.5,3471.0,3.431]
[1721226981760,3.0,3471.7,3471.0,3.431]
[1721226982363,3.0,3471.7,3471.0,0.55]
[1721226982700,2.88093,3471.1,3471.0,0.55]
[1721226983064,2.88093,3471.1,3470.3,0.30929436]
[1721226983065,2.88109,3471.0,3470.3,0.30929436]
[1721226983415,2.88115,3470.9,3470.4,0.55]
[1721226984479,5.29803,3471.1,3470.4,0.55]
[1721226984480,2.88102,3471.0,3470.4,0.55]
[1721226984710,5.29803,3471.1,3470.4,0.55]
[1721226984924,4.08347523,3471.3,3470.4,1.21226344]
[1721226985085,1.50790208,3471.4,3470.4,1.21226344]
[1721226985086,3.0,3471.2,3470.7,2.88124]
[1721226985269,2.88069,3471.4,3470.8,0.55]
[1721226985469,3.0,3471.3,3470.8,0.55]
[1721226986005,2.88056,3471.6,3470.8,4.232378]
[1721226986499,2.88056,3471.6,3470.9,2.88109]
[1721226986707,2.8806,3471.5,3471.0,0.55]
[1721226987063,2.8806,3471.5,3470.9,0.55]
[1721226987264,0.07045915,3471.4,3470.9,0.55]
[1721226987664,2.88094,3471.1,3470.9,0.55]
[1721226987879,1.20267523,3471.6,3470.5,2.88142]
[1721226987880,2.88081,3471.3,3470.6,0.55]
[1721226988120,2.88093,3471.1,3470.7,0.40936834]
[1721226988320,2.88093,3471.1,3470.6,0.55]
[1721226988321,2.88093,3471.1,3470.8,0.55]
[1721226988486,2.88109,3470.9,3470.8,0.55]
[1721226988886,2.95234466,3470.9,3470.8,0.55]
[1721226989084,2.88151,3470.4,3470.3,0.30929436]
[1721226989506,2.95259379,3470.4,3470.3,0.30929436]
[1721226989831,8.33120379,3470.4,3470.3,0.30929436]
[1721226989991,14.21271379,3470.4,3470.3,0.30929436]
[1721226990329,15.41538902,3470.4,3470.3,0.30929436]
[1721226990825,14.21271379,3470.4,3470.3,0.30929436]
[1721226990997,15.41538902,3470.4,3470.3,0.30929436]
[1721226991197,11.33120379,3470.4,3470.3,0.30929436]
[1721226991398,12.53387902,3470.4,3470.3,0.30929436]
[1721226991814,11.33120379,3470.4,3470.3,0.30929436]
[1721226995201,8.83410379,3470.4,3470.3,0.30929436]
[1721226996230,2.88176,3470.1,3469.3,0.30085633]
[1721226996440,2.88195,3469.9,3469.4,0.55]
[1721226996791,0.07044443,3469.8,3469.4,0.55]
[1721226997639,2.88215,3469.7,3469.4,0.55]
[1721226997935,5.76432,3469.7,3469.4,0.55]
[1721226998100,2.95257803,3469.6,3469.4,0.55]
[1721227000321,0.07040803,3469.6,3469.4,0.55]
[1721227001030,0.07037714,3469.5,3469.4,0.55]
[1721227001236,0.07037714,3469.5,3469.4,0.92334363]
[1721227001436,5.76365,3470.1,3469.4,3.80568363]
[1721227001606,2.88185,3470.0,3469.4,3.80568363]
[1721227001811,2.95239257,3470.0,3469.4,3.80568363]
[1721227002009,2.88193,3469.9,3469.4,0.92334363]
[1721227002398,0.07048304,3469.8,3469.4,0.92334363]
[1721227002599,0.07048304,3469.8,3469.5,0.410662]
[1721227002851,0.07048304,3469.8,3469.6,0.55]
[1721227003205,0.07048304,3469.8,3469.5,0.55]
[1721227004229,2.88214,3469.7,3469.5,0.55]
[1721227004436,2.95255248,3469.7,3469.4,0.55]
[1721227004601,5.76468,3469.4,3469.3,0.30085633]
[1721227005004,2.88276,3468.9,3468.3,2.88325]
[1721227005259,2.88276,3468.9,3468.5,0.30092305]
[1721227005407,0.06994628,3468.8,3468.5,0.30092305]
[1721227007543,0.06994628,3468.8,3468.6,0.55]
[1721227009453,2.95278628,3468.8,3468.6,0.55]
[1721227009634,0.06994628,3468.8,3468.6,0.55]
[1721227009808,0.06994628,3468.8,3468.6,0.92341731]
[1721227010007,0.06994628,3468.8,3468.6,3.80641731]
[1721227010267,2.4231,3470.0,3468.8,2.466]
[1721227010419,2.88206,3469.8,3469.1,2.88253]
[1721227010819,0.07035845,3469.7,3469.2,0.55]
[1721227011156,0.07035845,3469.7,3469.3,0.343253]
[1721227011453,2.88178,3470.1,3469.4,0.55]
[1721227011749,0.07032426,3469.6,3469.4,0.55]
[1721227011951,2.88186,3470.0,3469.4,0.55]
[1721227012556,0.07048791,3469.9,3469.4,0.55]
[1721227012847,2.95241791,3469.9,3469.4,1.2158203]
[1721227013048,2.95241791,3469.9,3469.4,0.55]
[1721227013207,2.95241791,3469.9,3469.2,0.55]
[1721227013644,2.88214,3469.7,3469.2,0.55]
[1721227013954,2.88214,3469.7,3469.1,0.55]
[1721227014160,0.07038532,3469.6,3469.1,1.428138]
[1721227015108,0.07038532,3469.6,3469.1,4.310718]
[1721227015512,2.88193,3469.9,3469.1,4.310718]
[1721227015719,0.07035112,3469.5,3469.1,4.310718]
[1721227016039,2.88226,3469.5,3469.1,0.55]
[1721227016347,2.88226,3469.5,3468.8,0.55]
[1721227016514,0.07028114,3469.4,3468.8,3.43277]
[1721227016714,0.07028114,3469.4,3468.9,2.88269]
[1721227016917,2.95264114,3469.4,3469.0,0.55]
[1721227017168,2.3912,3469.4,3468.7,0.30091668]
[1721227017466,2.8826,3469.1,3468.7,0.30091668]
[1721227017759,2.88267,3469.0,3468.7,0.30091668]
[1721227017930,2.88284,3468.8,3468.7,0.30091668]
[1721227018322,2.88284,3468.8,3467.9,4.0638]
[1721227018323,0.07015351,3468.8,3467.9,4.0638]
[1721227018516,0.07015351,3468.8,3468.5,2.88307]
[1721227018742,2.88272,3469.0,3468.3,3.1843422]
[1721227019077,2.88289,3468.8,3468.3,0.3011122]
[1721227019421,5.27358,3469.4,3468.3,0.3011122]
[1721227019422,0.07001638,3468.7,3468.3,0.3011122]
[1721227019622,0.07001638,3468.7,3468.4,3.20154822]
[1721227019822,2.88259,3469.1,3468.4,3.20154822]
[1721227020241,2.3912,3469.4,3468.4,0.31843822]
[1721227020242,2.95278609,3469.0,3468.4,0.31843822]
[1721227020445,2.95278609,3469.0,3468.5,0.55]
[1721227020646,2.88275,3468.9,3468.5,0.55]
[1721227020954,2.88302,3468.6,3468.3,0.3011122]
[1721227021321,0.0698833,3468.5,3468.3,0.3011122]
[1721227021523,0.0698833,3468.5,3468.4,3.61591422]
[1721227021745,2.88267,3469.0,3468.4,0.73274422]
[1721227021962,0.06972804,3468.5,3468.4,0.73274422]
[1721227022165,2.88267,3469.0,3468.4,0.73274422]
[1721227022464,2.3912,3469.4,3468.4,3.61591422]
[1721227022632,0.06995411,3468.9,3468.5,1.64432964]
[1721227022831,2.88264,3469.1,3468.5,1.64432964]
[1721227023021,0.06984715,3468.8,3468.5,0.55]
[1721227023220,2.8827,3469.0,3468.4,0.55]
[1721227023451,0.06985373,3468.7,3468.4,3.43316]
[1721227023654,2.8827,3469.0,3468.4,3.43316]
[1721227023857,0.06981951,3468.6,3468.4,3.43316]
[1721227024082,2.8827,3469.0,3468.4,0.92342722]
[1721227024234,0.06985804,3468.5,3468.4,3.43317]
[1721227024431,2.8827,3469.0,3468.4,3.43317]
[1721227024637,0.06987801,3468.5,3468.4,3.43317]
[1721227024950,3.0,3469.7,3468.4,2.845]
[1721227025273,2.88223,3469.6,3468.6,5.32594]
[1721227025489,2.8823,3469.5,3468.8,2.88278]
[1721227025798,2.95231801,3469.6,3468.8,2.88278]
[1721227025799,0.07008801,3469.6,3468.8,2.88278]
[1721227026000,5.24194,3469.8,3469.1,2.88253]
[1721227026001,0.07009814,3469.5,3469.1,2.88253]
[1721227026285,2.88193,3469.9,3469.2,0.55]
[1721227026286,2.88213,3469.7,3469.2,0.55]
[1721227026487,0.07001599,3469.4,3469.2,0.55]
[1721227026696,2.88213,3469.7,3469.2,0.55]
[1721227026866,0.07020935,3469.3,3469.2,0.55]
[1721227027071,2.88213,3469.7,3469.2,0.55]
[1721227027267,0.07020935,3469.3,3469.2,0.55]
[1721227027481,2.88223,3469.6,3469.2,0.9564174]
[1721227027681,0.07022086,3469.3,3469.2,0.55]
[1721227027989,0.07014813,3469.3,3469.2,0.55]
[1721227028196,5.76446,3469.6,3469.0,0.55]
[1721227028353,5.76446,3469.6,3468.6,5.32597]
[1721227028354,2.88242,3469.3,3468.9,0.55]
[1721227028690,0.07023854,3469.2,3468.7,0.55]